[Event "*** Titled Tuesday Blitz"]
[Site "Chess.com"]
[Date "2020.03.03"]
[Round "6"]
[White "malandragem"]
[Black "denizozen"]
[Result "0-1"]
[WhiteElo "2623"]
[BlackElo "2847"]
[TimeControl "180+1"]
[EndTime "14:02:53 PST"]
[Termination "denizozen won by resignation"]

1. e4 {[%clk 0:03:00.9]} 1... c5 {[%clk 0:03:00.1]} 2. Nc3 {[%clk 0:03:01.3]}
2... Nc6 {[%clk 0:02:59.7]} 3. g3 {[%clk 0:03:01.7]} 3... g6 {[%clk 0:02:59.7]}
4. Bg2 {[%clk 0:03:02.1]} 4... Bg7 {[%clk 0:03:00.6]} 5. d3 {[%clk 0:03:02.5]}
5... Rb8 {[%clk 0:02:58.9]} 6. Nge2 {[%clk 0:03:02.7]} 6... b5 {[%clk
0:02:59.2]} 7. Rb1 {[%clk 0:02:47.3]} 7... b4 {[%clk 0:02:58.6]} 8. Nd5 {[%clk
0:02:47.6]} 8... e6 {[%clk 0:02:58.5]} 9. Ne3 {[%clk 0:02:46.7]} 9... Nge7
{[%clk 0:02:58.7]} 10. O-O {[%clk 0:02:46]} 10... O-O {[%clk 0:02:58.8]} 11. f4
{[%clk 0:02:42.2]} 11... d5 {[%clk 0:02:59.1]} 12. e5 {[%clk 0:02:37.9]} 12...
f6 {[%clk 0:02:56.7]} 13. exf6 {[%clk 0:02:37.2]} 13... Bxf6 {[%clk 0:02:57.6]}
14. Ng4 {[%clk 0:02:20.6]} 14... Bg7 {[%clk 0:02:57.8]} 15. Be3 {[%clk
0:02:19.1]} 15... h5 {[%clk 0:02:53.2]} 16. Ne5 {[%clk 0:02:09.4]} 16... Nxe5
{[%clk 0:02:52.4]} 17. fxe5 {[%clk 0:02:09.7]} 17... Qc7 {[%clk 0:02:09.8]} 18.
Rxf8+ {[%clk 0:01:56.7]} 18... Bxf8 {[%clk 0:02:10.7]} 19. d4 {[%clk 0:01:43.8]}
19... Nf5 {[%clk 0:02:08.3]} 20. Bf2 {[%clk 0:01:42.8]} 20... cxd4 {[%clk
0:02:05.9]} 21. Nxd4 {[%clk 0:01:43]} 21... Bc5 {[%clk 0:02:00.8]} 22. Nxf5
{[%clk 0:01:38.8]} 22... Bxf2+ {[%clk 0:01:59.2]} 23. Kxf2 {[%clk 0:01:39]}
23... gxf5 {[%clk 0:02:00.1]} 24. Qxh5 {[%clk 0:01:35.3]} 24... Qxc2+ {[%clk
0:01:54.7]} 25. Kf3 {[%clk 0:01:28.3]} 25... Qe4+ {[%clk 0:01:11.9]} 26. Kf2
{[%clk 0:01:28.3]} 26... Qc2+ {[%clk 0:01:05.3]} 27. Kf3 {[%clk 0:01:28]} 27...
Qe4+ {[%clk 0:00:48]} 28. Kf2 {[%clk 0:01:28.1]} 28... Qxe5 {[%clk 0:00:48.9]}
29. Qe8+ {[%clk 0:01:06.2]} 29... Kg7 {[%clk 0:00:48.8]} 30. Qe7+ {[%clk
0:01:06.6]} 30... Kh6 {[%clk 0:00:48]} 31. Qh4+ {[%clk 0:01:05.1]} 31... Kg6
{[%clk 0:00:47.3]} 32. Re1 {[%clk 0:01:05.7]} 32... Qxb2+ {[%clk 0:00:44.6]} 33.
Re2 {[%clk 0:01:06]} 33... Qf6 {[%clk 0:00:44.6]} 34. Qf4 {[%clk 0:01:04.9]}
34... Rb7 {[%clk 0:00:40.4]} 35. h4 {[%clk 0:01:02.6]} 35... Rh7 {[%clk
0:00:34.5]} 36. Bf3 {[%clk 0:00:58.7]} 36... Re7 {[%clk 0:00:26.2]} 37. h5+
{[%clk 0:00:51.7]} 37... Kh7 {[%clk 0:00:26.3]} 38. Qxb4 {[%clk 0:00:51.8]}
38... d4 {[%clk 0:00:22.8]} 39. Rc2 {[%clk 0:00:38.9]} 39... e5 {[%clk
0:00:21.5]} 40. Rxc8 {[%clk 0:00:38.6]} 40... e4 {[%clk 0:00:20.5]} 41. Qb3
{[%clk 0:00:31.5]} 41... Rg7 {[%clk 0:00:15.6]} 42. Be2 {[%clk 0:00:25.6]} 42...
Qg5 {[%clk 0:00:15.9]} 43. h6 {[%clk 0:00:21.2]} 43... Qxh6 {[%clk 0:00:14.7]}
44. Ke1 {[%clk 0:00:19.7]} 44... d3 {[%clk 0:00:14.6]} 45. Bxd3 {[%clk
0:00:18.8]} 45... exd3 {[%clk 0:00:15.4]} 46. Qxd3 {[%clk 0:00:19.2]} 46... Qe6+
{[%clk 0:00:14]} 0-1

[Event "*** Titled Tuesday Blitz"]
[Site "Chess.com"]
[Date "2020.03.03"]
[Round "6"]
[White "IngOscarArdila"]
[Black "ChesterF"]
[Result "1-0"]
[WhiteElo "2192"]
[BlackElo "2410"]
[TimeControl "180+1"]
[EndTime "14:02:59 PST"]
[Termination "IngOscarArdila won by resignation"]

1. d4 {[%clk 0:03:00.9]} 1... Nf6 {[%clk 0:02:04.5]} 2. c4 {[%clk 0:03:00]} 2...
e6 {[%clk 0:02:04.7]} 3. Nc3 {[%clk 0:02:58.7]} 3... Bb4 {[%clk 0:02:04.5]} 4.
Bd2 {[%clk 0:02:59]} 4... O-O {[%clk 0:02:02.2]} 5. e3 {[%clk 0:02:58.9]} 5...
b6 {[%clk 0:02:02]} 6. Nf3 {[%clk 0:02:57.9]} 6... d5 {[%clk 0:02:02.2]} 7. cxd5
{[%clk 0:02:57.3]} 7... exd5 {[%clk 0:02:02.8]} 8. Bd3 {[%clk 0:02:57.1]} 8...
Re8 {[%clk 0:02:01.2]} 9. O-O {[%clk 0:02:56.5]} 9... Bb7 {[%clk 0:02:00.4]} 10.
Rc1 {[%clk 0:02:55.9]} 10... a6 {[%clk 0:02:00.4]} 11. Ne5 {[%clk 0:02:53.7]}
11... Bd6 {[%clk 0:02:00.7]} 12. f4 {[%clk 0:02:53.3]} 12... c5 {[%clk
0:02:01.2]} 13. Qf3 {[%clk 0:02:47.9]} 13... Nc6 {[%clk 0:01:58.2]} 14. Ne2
{[%clk 0:02:02.9]} 14... Ne4 {[%clk 0:01:48.7]} 15. Bxe4 {[%clk 0:02:01.5]}
15... dxe4 {[%clk 0:01:46.3]} 16. Qh5 {[%clk 0:01:57.6]} 16... g6 {[%clk
0:01:36.9]} 17. Qh6 {[%clk 0:01:46.3]} 17... Bf8 {[%clk 0:00:55.5]} 18. Qh3
{[%clk 0:01:41.2]} 18... Bg7 {[%clk 0:00:55]} 19. Bc3 {[%clk 0:01:36.1]} 19...
Rc8 {[%clk 0:00:48.8]} 20. Rfd1 {[%clk 0:01:34.7]} 20... Qe7 {[%clk 0:00:40.8]}
21. Nxc6 {[%clk 0:01:29.9]} 21... Bxc6 {[%clk 0:00:40.4]} 22. d5 {[%clk
0:01:30.3]} 22... Bb5 {[%clk 0:00:40.2]} 23. Rd2 {[%clk 0:01:24.4]} 23... Bxe2
{[%clk 0:00:36.8]} 24. Rxe2 {[%clk 0:01:22.6]} 24... Bxc3 {[%clk 0:00:37.2]} 25.
bxc3 {[%clk 0:01:22.7]} 25... c4 {[%clk 0:00:37.5]} 26. Rd2 {[%clk 0:01:16.4]}
26... Qc5 {[%clk 0:00:36.8]} 27. d6 {[%clk 0:01:12.7]} 27... Rcd8 {[%clk
0:00:37.2]} 28. d7 {[%clk 0:01:12.4]} 28... Re7 {[%clk 0:00:34.5]} 29. Rcd1
{[%clk 0:01:12.4]} 29... f5 {[%clk 0:00:31.4]} 30. Rd4 {[%clk 0:01:03]} 30...
Qc7 {[%clk 0:00:31.2]} 31. Qh4 {[%clk 0:00:58.6]} 31... Rdxd7 {[%clk 0:00:26.3]}
32. Qf6 {[%clk 0:00:54.9]} 32... Rxd4 {[%clk 0:00:22.3]} 33. Rxd4 {[%clk
0:00:54.7]} 33... b5 {[%clk 0:00:19.7]} 34. Qxa6 {[%clk 0:00:53.3]} 34... b4
{[%clk 0:00:17.7]} 35. Qxc4+ {[%clk 0:00:46.8]} 35... Qxc4 {[%clk 0:00:15.9]}
36. Rxc4 {[%clk 0:00:47.7]} 36... bxc3 {[%clk 0:00:16.8]} 37. Rxc3 {[%clk
0:00:48]} 37... Rb7 {[%clk 0:00:17.4]} 38. Rc2 {[%clk 0:00:44.9]} 38... Rb4
{[%clk 0:00:14.9]} 39. Kf2 {[%clk 0:00:44.9]} 39... Ra4 {[%clk 0:00:15.3]} 40.
Re2 {[%clk 0:00:43.7]} 40... Ra3 {[%clk 0:00:16.2]} 41. Kg3 {[%clk 0:00:43.6]}
41... Kf7 {[%clk 0:00:16.8]} 42. Kh4 {[%clk 0:00:44]} 42... Kf6 {[%clk
0:00:17.7]} 43. g4 {[%clk 0:00:44.1]} 43... h6 {[%clk 0:00:17.7]} 44. g5+ {[%clk
0:00:42.5]} 44... hxg5+ {[%clk 0:00:18]} 45. fxg5+ {[%clk 0:00:42.7]} 45... Ke5
{[%clk 0:00:18.6]} 46. h3 {[%clk 0:00:40.1]} 46... f4 {[%clk 0:00:18.7]} 47.
exf4+ {[%clk 0:00:38.2]} 47... Kxf4 {[%clk 0:00:19.3]} 48. Rf2+ {[%clk
0:00:38.4]} 48... Ke3 {[%clk 0:00:18.7]} 49. Rf6 {[%clk 0:00:38.4]} 49... Rxa2
{[%clk 0:00:14.5]} 50. Rxg6 {[%clk 0:00:38.2]} 50... Ke2 {[%clk 0:00:14.7]} 51.
Re6 {[%clk 0:00:38.2]} 51... e3 {[%clk 0:00:15]} 52. g6 {[%clk 0:00:38.4]} 52...
Ra7 {[%clk 0:00:14.7]} 53. Kg5 {[%clk 0:00:38.2]} 53... Kf3 {[%clk 0:00:15]} 54.
h4 {[%clk 0:00:38.4]} 54... e2 {[%clk 0:00:14.9]} 55. h5 {[%clk 0:00:38.4]}
55... Ra5+ {[%clk 0:00:14.8]} 56. Kh6 {[%clk 0:00:37.9]} 56... Ra4 {[%clk
0:00:14.1]} 57. Rxe2 {[%clk 0:00:35.2]} 57... Kxe2 {[%clk 0:00:13.9]} 58. g7
{[%clk 0:00:35.7]} 58... Ra8 {[%clk 0:00:13.1]} 59. Kh7 {[%clk 0:00:35.4]} 59...
Kf3 {[%clk 0:00:13.4]} 60. g8=Q {[%clk 0:00:35]} 60... Rxg8 {[%clk 0:00:09]} 61.
Kxg8 {[%clk 0:00:35.9]} 1-0

[Event "*** Titled Tuesday Blitz"]
[Site "Chess.com"]
[Date "2020.03.03"]
[Round "6"]
[White "Gahan-MG"]
[Black "sergiochess83"]
[Result "1/2-1/2"]
[WhiteElo "2521"]
[BlackElo "2907"]
[TimeControl "180+1"]
[EndTime "14:03:04 PST"]
[Termination "Game drawn by repetition"]

1. e4 {[%clk 0:03:00.9]} 1... c6 {[%clk 0:02:59.1]} 2. d4 {[%clk 0:03:00.9]}
2... d5 {[%clk 0:02:59.3]} 3. exd5 {[%clk 0:03:00.2]} 3... cxd5 {[%clk
0:02:59.3]} 4. c4 {[%clk 0:03:01.1]} 4... Nf6 {[%clk 0:02:58.5]} 5. Nc3 {[%clk
0:03:01.6]} 5... e6 {[%clk 0:02:59.1]} 6. Bg5 {[%clk 0:03:00.7]} 6... Be7 {[%clk
0:02:53.9]} 7. Nf3 {[%clk 0:03:00]} 7... O-O {[%clk 0:02:53.2]} 8. c5 {[%clk
0:02:59.4]} 8... b6 {[%clk 0:02:49.1]} 9. b4 {[%clk 0:02:58.1]} 9... a5 {[%clk
0:02:48]} 10. a3 {[%clk 0:02:58.2]} 10... Ne4 {[%clk 0:02:37.2]} 11. Bxe7 {[%clk
0:02:49.9]} 11... Qxe7 {[%clk 0:02:37]} 12. Nxe4 {[%clk 0:02:39.2]} 12... dxe4
{[%clk 0:02:36.6]} 13. Ne5 {[%clk 0:02:39.6]} 13... Nd7 {[%clk 0:02:25.3]} 14.
Nc4 {[%clk 0:02:31.8]} 14... Ba6 {[%clk 0:02:16.9]} 15. c6 {[%clk 0:02:17.4]}
15... Bxc4 {[%clk 0:02:11.8]} 16. Bxc4 {[%clk 0:02:14.6]} 16... Nf6 {[%clk
0:02:12.3]} 17. b5 {[%clk 0:02:12.8]} 17... Qd6 {[%clk 0:02:05.1]} 18. O-O
{[%clk 0:01:55.7]} 18... Rfd8 {[%clk 0:02:00.6]} 19. Qb3 {[%clk 0:01:46]} 19...
Qxd4 {[%clk 0:01:57.1]} 20. Rfd1 {[%clk 0:01:44.7]} 20... Qe5 {[%clk 0:01:57.2]}
21. h3 {[%clk 0:01:43.1]} 21... g5 {[%clk 0:01:43.1]} 22. Qe3 {[%clk 0:01:41.2]}
22... Nd5 {[%clk 0:01:29.4]} 23. Bxd5 {[%clk 0:01:36.8]} 23... Rxd5 {[%clk
0:01:30.3]} 24. a4 {[%clk 0:01:23.7]} 24... Rad8 {[%clk 0:01:25.2]} 25. Rdc1
{[%clk 0:01:20.4]} 25... Rd4 {[%clk 0:01:25.6]} 26. g3 {[%clk 0:00:55.5]} 26...
h6 {[%clk 0:01:22.1]} 27. Kg2 {[%clk 0:00:53.8]} 27... Qc7 {[%clk 0:01:15.3]}
28. Ra2 {[%clk 0:00:46.1]} 28... R8d5 {[%clk 0:01:14.2]} 29. Rcc2 {[%clk
0:00:33.2]} 29... Kg7 {[%clk 0:01:08.2]} 30. Rd2 {[%clk 0:00:32.7]} 30... Qe5
{[%clk 0:00:55.1]} 31. Rxd4 {[%clk 0:00:25.8]} 31... Qxd4 {[%clk 0:00:55.4]} 32.
Qxd4+ {[%clk 0:00:20.5]} 32... Rxd4 {[%clk 0:00:55.6]} 33. Rc2 {[%clk 0:00:21]}
33... Rd8 {[%clk 0:00:55.7]} 34. Kf1 {[%clk 0:00:15.5]} 34... Kf6 {[%clk
0:00:54.4]} 35. Ke2 {[%clk 0:00:15.7]} 35... Ke5 {[%clk 0:00:54.8]} 36. Ke3
{[%clk 0:00:15.7]} 36... f5 {[%clk 0:00:54.5]} 37. Rc3 {[%clk 0:00:12.1]} 37...
Kd6 {[%clk 0:00:47.8]} 38. g4 {[%clk 0:00:09.5]} 38... Kc7 {[%clk 0:00:43.2]}
39. Rc4 {[%clk 0:00:09.5]} 39... Rd3+ {[%clk 0:00:40.4]} 40. Ke2 {[%clk
0:00:09.9]} 40... Rxh3 {[%clk 0:00:19.3]} 41. Rd4 {[%clk 0:00:10.1]} 41... Rd3
{[%clk 0:00:18.2]} 42. Rxd3 {[%clk 0:00:05.9]} 42... exd3+ {[%clk 0:00:19.1]}
43. Kxd3 {[%clk 0:00:06.8]} 43... fxg4 {[%clk 0:00:19.8]} 44. Ke4 {[%clk
0:00:07.3]} 44... h5 {[%clk 0:00:19.2]} 45. Ke3 {[%clk 0:00:07.7]} 45... h4
{[%clk 0:00:18.9]} 46. Ke2 {[%clk 0:00:08]} 46... e5 {[%clk 0:00:16.7]} 47. Kf1
{[%clk 0:00:07.8]} 47... e4 {[%clk 0:00:15.9]} 48. Kg2 {[%clk 0:00:08.3]} 48...
Kd6 {[%clk 0:00:14]} 49. Kg1 {[%clk 0:00:07.3]} 49... Ke6 {[%clk 0:00:12.1]} 50.
Kg2 {[%clk 0:00:07.5]} 50... Kd6 {[%clk 0:00:11.9]} 51. Kg1 {[%clk 0:00:07.8]}
51... Kc7 {[%clk 0:00:11.8]} 52. Kg2 {[%clk 0:00:08.2]} 52... Kd6 {[%clk
0:00:10.6]} 1/2-1/2

[Event "*** Titled Tuesday Blitz"]
[Site "Chess.com"]
[Date "2020.03.03"]
[Round "6"]
[White "albano87"]
[Black "deBaller"]
[Result "0-1"]
[WhiteElo "1910"]
[BlackElo "2359"]
[TimeControl "180+1"]
[EndTime "14:03:05 PST"]
[Termination "deBaller won by resignation"]

1. e4 {[%clk 0:02:59.1]} 1... e6 {[%clk 0:02:59.9]} 2. d4 {[%clk 0:02:58.5]}
2... d5 {[%clk 0:03:00.2]} 3. Nc3 {[%clk 0:02:58.3]} 3... Nf6 {[%clk 0:03:00.4]}
4. Bg5 {[%clk 0:02:57.6]} 4... Be7 {[%clk 0:03:00.2]} 5. e5 {[%clk 0:02:57.6]}
5... Nfd7 {[%clk 0:03:00.8]} 6. h4 {[%clk 0:02:55.3]} 6... h6 {[%clk 0:03:00.7]}
7. Bxe7 {[%clk 0:02:49.6]} 7... Qxe7 {[%clk 0:03:01.6]} 8. Qg4 {[%clk 0:02:49]}
8... O-O {[%clk 0:03:01.3]} 9. O-O-O {[%clk 0:02:49]} 9... a6 {[%clk 0:03:01]}
10. Nf3 {[%clk 0:02:35.2]} 10... c5 {[%clk 0:03:00]} 11. dxc5 {[%clk 0:02:34.9]}
11... Nc6 {[%clk 0:02:57.9]} 12. Qf4 {[%clk 0:02:31.6]} 12... f6 {[%clk
0:02:50.7]} 13. exf6 {[%clk 0:02:28.4]} 13... Rxf6 {[%clk 0:02:46.5]} 14. Qe3
{[%clk 0:02:28.4]} 14... Qxc5 {[%clk 0:02:43.1]} 15. Qxc5 {[%clk 0:02:25.3]}
15... Nxc5 {[%clk 0:02:44]} 16. Be2 {[%clk 0:02:18.5]} 16... b5 {[%clk
0:02:42.9]} 17. Rhe1 {[%clk 0:02:14]} 17... b4 {[%clk 0:02:42.7]} 18. Nxd5
{[%clk 0:02:03.2]} 18... exd5 {[%clk 0:02:40]} 19. Rxd5 {[%clk 0:02:03.9]} 19...
Nb7 {[%clk 0:02:10.8]} 20. Bc4 {[%clk 0:02:02.9]} 20... Kh7 {[%clk 0:02:01.4]}
21. Bd3+ {[%clk 0:01:57.8]} 21... g6 {[%clk 0:02:00.8]} 22. h5 {[%clk
0:01:53.7]} 22... Be6 {[%clk 0:01:52.1]} 23. Bxg6+ {[%clk 0:01:47.6]} 23... Kg7
{[%clk 0:01:51.9]} 24. Rd2 {[%clk 0:01:35]} 24... Rd8 {[%clk 0:01:50.4]} 25.
Rxd8 {[%clk 0:01:32]} 25... Nbxd8 {[%clk 0:01:49.3]} 26. Re4 {[%clk 0:01:20.9]}
26... Nb7 {[%clk 0:01:43.2]} 27. Ne5 {[%clk 0:01:12.7]} 27... Bd5 {[%clk
0:00:49.3]} 28. Nxc6 {[%clk 0:00:58.8]} 28... Bxc6 {[%clk 0:00:46.6]} 29. Re7+
{[%clk 0:00:54.9]} 29... Kf8 {[%clk 0:00:46.2]} 30. Rh7 {[%clk 0:00:53.1]} 30...
Kg8 {[%clk 0:00:32.6]} 31. Rxh6 {[%clk 0:00:48]} 31... Be8 {[%clk 0:00:30.1]}
32. Rh7 {[%clk 0:00:44.6]} 32... Bxg6 {[%clk 0:00:29.7]} 33. hxg6 {[%clk
0:00:43.6]} 33... Nc5 {[%clk 0:00:30.1]} 34. Rc7 {[%clk 0:00:40.7]} 34... Ne4
{[%clk 0:00:29]} 35. f3 {[%clk 0:00:40.7]} 35... Ng3 {[%clk 0:00:28.4]} 36. Rb7
{[%clk 0:00:33.5]} 36... a5 {[%clk 0:00:17.6]} 37. Rb5 {[%clk 0:00:33.4]} 37...
Re6 {[%clk 0:00:16.1]} 38. Rxa5 {[%clk 0:00:29.2]} 38... Nf1 {[%clk 0:00:16.2]}
39. Kd1 {[%clk 0:00:22.5]} 39... Ne3+ {[%clk 0:00:15.4]} 40. Kc1 {[%clk
0:00:22.8]} 40... Rd6 {[%clk 0:00:14]} 41. b3 {[%clk 0:00:21.4]} 41... Rd1+
{[%clk 0:00:11.5]} 42. Kb2 {[%clk 0:00:21.7]} 42... Nd5 {[%clk 0:00:10]} 43. Rb5
{[%clk 0:00:17.6]} 43... Kg7 {[%clk 0:00:07.1]} 44. a4 {[%clk 0:00:16.1]} 44...
bxa3+ {[%clk 0:00:03.5]} 45. Kxa3 {[%clk 0:00:16.2]} 45... Ne3 {[%clk
0:00:04.1]} 46. c4 {[%clk 0:00:15.9]} 46... Rd3 {[%clk 0:00:02.4]} 47. Rb6
{[%clk 0:00:09.1]} 47... Nxc4+ {[%clk 0:00:01.2]} 0-1

[Event "*** Titled Tuesday Blitz"]
[Site "Chess.com"]
[Date "2020.03.03"]
[Round "6"]
[White "Bad4life"]
[Black "chessdjw"]
[Result "1-0"]
[WhiteElo "2304"]
[BlackElo "2615"]
[TimeControl "180+1"]
[EndTime "14:03:09 PST"]
[Termination "Bad4life won on time"]

1. e4 {[%clk 0:03:00.9]} 1... e5 {[%clk 0:02:59.3]} 2. Nf3 {[%clk 0:02:56.6]}
2... Nc6 {[%clk 0:02:59.7]} 3. Bc4 {[%clk 0:02:55.7]} 3... Bc5 {[%clk
0:02:58.7]} 4. O-O {[%clk 0:02:55.7]} 4... d6 {[%clk 0:02:59.4]} 5. d3 {[%clk
0:02:56.3]} 5... Nge7 {[%clk 0:02:57.2]} 6. c3 {[%clk 0:02:54.4]} 6... Ng6
{[%clk 0:02:54.4]} 7. b4 {[%clk 0:02:54.5]} 7... Bb6 {[%clk 0:02:54.1]} 8. Bg5
{[%clk 0:02:53.8]} 8... Qd7 {[%clk 0:02:44.5]} 9. a4 {[%clk 0:02:50.1]} 9... h6
{[%clk 0:02:37.8]} 10. Be3 {[%clk 0:02:43.9]} 10... O-O {[%clk 0:02:21.8]} 11.
Ra2 {[%clk 0:02:40.7]} 11... Nd8 {[%clk 0:02:18.9]} 12. d4 {[%clk 0:02:39.2]}
12... a5 {[%clk 0:02:16.1]} 13. b5 {[%clk 0:02:27.8]} 13... Ne6 {[%clk
0:02:12.8]} 14. g3 {[%clk 0:02:07]} 14... Qe7 {[%clk 0:02:10.7]} 15. dxe5 {[%clk
0:01:58.7]} 15... dxe5 {[%clk 0:01:58.2]} 16. Bxb6 {[%clk 0:01:52.8]} 16... cxb6
{[%clk 0:01:59.1]} 17. Rd2 {[%clk 0:01:44.5]} 17... Nc5 {[%clk 0:01:58.6]} 18.
Qc2 {[%clk 0:01:35.8]} 18... Bg4 {[%clk 0:01:53.2]} 19. Ne1 {[%clk 0:01:30.8]}
19... Rad8 {[%clk 0:01:24.8]} 20. Bd5 {[%clk 0:01:19.7]} 20... Qg5 {[%clk
0:01:19]} 21. f3 {[%clk 0:00:58]} 21... Bh3 {[%clk 0:01:17.8]} 22. Ng2 {[%clk
0:00:50.4]} 22... h5 {[%clk 0:01:17.8]} 23. f4 {[%clk 0:00:44.6]} 23... exf4
{[%clk 0:01:17]} 24. gxf4 {[%clk 0:00:45.1]} 24... Qh6 {[%clk 0:00:46.5]} 25.
Rdf2 {[%clk 0:00:36.2]} 25... Rfe8 {[%clk 0:00:40.7]} 26. Nd2 {[%clk 0:00:31.7]}
26... Re7 {[%clk 0:00:28.6]} 27. c4 {[%clk 0:00:31.7]} 27... Kh8 {[%clk
0:00:27.5]} 28. Kh1 {[%clk 0:00:20.6]} 28... f6 {[%clk 0:00:27.6]} 29. Nb1
{[%clk 0:00:17.1]} 29... Rde8 {[%clk 0:00:23]} 30. Nc3 {[%clk 0:00:14.1]} 30...
Nf8 {[%clk 0:00:23.2]} 31. Rg1 {[%clk 0:00:13.5]} 31... Nfe6 {[%clk 0:00:21.3]}
32. Nh4 {[%clk 0:00:07]} 32... g5 {[%clk 0:00:13.3]} 33. fxg5 {[%clk 0:00:06.2]}
33... fxg5 {[%clk 0:00:13.2]} 34. Nf5 {[%clk 0:00:05.6]} 34... Bxf5 {[%clk
0:00:13.5]} 35. exf5 {[%clk 0:00:06.1]} 35... Nf4 {[%clk 0:00:13.9]} 36. Qd2
{[%clk 0:00:04.9]} 36... Re3 {[%clk 0:00:12.8]} 37. Qd4+ {[%clk 0:00:05.3]}
37... Kh7 {[%clk 0:00:07]} 38. Nd1 {[%clk 0:00:04.5]} 38... Nh3 {[%clk
0:00:05.8]} 39. Rgf1 {[%clk 0:00:04.4]} 39... Nxf2+ {[%clk 0:00:05.5]} 40. Nxf2
{[%clk 0:00:04.3]} 40... Qg7 {[%clk 0:00:04.2]} 41. f6 {[%clk 0:00:04.2]} 41...
Qg6 {[%clk 0:00:04]} 42. Rg1 {[%clk 0:00:03.5]} 42... Re1 {[%clk 0:00:03.5]} 43.
f7 {[%clk 0:00:03.2]} 43... Rxg1+ {[%clk 0:00:02.9]} 44. Kxg1 {[%clk 0:00:04.1]}
1-0

[Event "*** Titled Tuesday Blitz"]
[Site "Chess.com"]
[Date "2020.03.03"]
[Round "6"]
[White "Gogolev_Artemy"]
[Black "Playgood28"]
[Result "1-0"]
[WhiteElo "2454"]
[BlackElo "2242"]
[TimeControl "180+1"]
[EndTime "14:03:12 PST"]
[Termination "Gogolev_Artemy won by resignation"]

1. c4 {[%clk 0:03:00.9]} 1... f5 {[%clk 0:02:57.9]} 2. d3 {[%clk 0:02:58.6]}
2... g6 {[%clk 0:02:55.2]} 3. e4 {[%clk 0:02:57.4]} 3... d6 {[%clk 0:02:50.8]}
4. exf5 {[%clk 0:02:54.9]} 4... Bxf5 {[%clk 0:02:49.5]} 5. Nf3 {[%clk
0:02:55.1]} 5... Bg7 {[%clk 0:02:48.1]} 6. d4 {[%clk 0:02:54.8]} 6... Nc6 {[%clk
0:02:40.4]} 7. Nc3 {[%clk 0:02:52.1]} 7... Nf6 {[%clk 0:02:37.5]} 8. d5 {[%clk
0:02:50.5]} 8... Ne5 {[%clk 0:02:30.3]} 9. Nxe5 {[%clk 0:02:45.6]} 9... dxe5
{[%clk 0:02:30.1]} 10. Be2 {[%clk 0:02:45.1]} 10... O-O {[%clk 0:02:28.6]} 11.
O-O {[%clk 0:02:42.4]} 11... a6 {[%clk 0:02:28.7]} 12. c5 {[%clk 0:02:35.1]}
12... b6 {[%clk 0:02:25.2]} 13. Be3 {[%clk 0:02:29.2]} 13... Nd7 {[%clk
0:02:16.9]} 14. c6 {[%clk 0:02:21]} 14... Nf6 {[%clk 0:02:09.5]} 15. Qb3 {[%clk
0:02:15.6]} 15... Kh8 {[%clk 0:02:06.7]} 16. Rad1 {[%clk 0:02:13.9]} 16... Ne8
{[%clk 0:02:05.7]} 17. Rfe1 {[%clk 0:02:05.1]} 17... Nd6 {[%clk 0:02:05]} 18.
Bg5 {[%clk 0:02:01.2]} 18... Qe8 {[%clk 0:02:02.8]} 19. Bf3 {[%clk 0:02:00]}
19... h6 {[%clk 0:01:51.5]} 20. Bh4 {[%clk 0:01:51.3]} 20... Qf7 {[%clk
0:01:29]} 21. Bg3 {[%clk 0:01:48.4]} 21... Kh7 {[%clk 0:01:03.6]} 22. Rd2 {[%clk
0:01:42]} 22... h5 {[%clk 0:01:00.5]} 23. Bxe5 {[%clk 0:01:39.7]} 23... Bh6
{[%clk 0:00:55.3]} 24. Rde2 {[%clk 0:01:28.1]} 24... Rae8 {[%clk 0:00:54.9]} 25.
Qd1 {[%clk 0:01:12.9]} 25... h4 {[%clk 0:00:43.1]} 26. Qd4 {[%clk 0:00:53.4]}
26... h3 {[%clk 0:00:41]} 27. Qh4 {[%clk 0:00:38.1]} 27... hxg2 {[%clk
0:00:35.6]} 28. Bf4 {[%clk 0:00:36.5]} 28... g5 {[%clk 0:00:32]} 29. Bxg5 {[%clk
0:00:35.1]} 29... Qg6 {[%clk 0:00:27.9]} 30. Rxe7+ {[%clk 0:00:31.1]} 30... Rxe7
{[%clk 0:00:27.5]} 31. Rxe7+ {[%clk 0:00:31.4]} 31... Rf7 {[%clk 0:00:23.7]} 32.
Bxh6 {[%clk 0:00:20.6]} 32... Qxh6 {[%clk 0:00:23]} 33. Qxh6+ {[%clk 0:00:17.3]}
33... Kxh6 {[%clk 0:00:21.9]} 34. Rxf7 {[%clk 0:00:16.9]} 34... Nxf7 {[%clk
0:00:21.2]} 35. Kxg2 {[%clk 0:00:17.8]} 35... Nd6 {[%clk 0:00:19.9]} 36. Kg3
{[%clk 0:00:18]} 36... Kg5 {[%clk 0:00:19.3]} 37. h4+ {[%clk 0:00:17.5]} 37...
Kf6 {[%clk 0:00:18.9]} 38. Kf4 {[%clk 0:00:17.6]} 38... Bc2 {[%clk 0:00:17.7]}
39. Ne4+ {[%clk 0:00:17.1]} 39... Bxe4 {[%clk 0:00:16.6]} 40. Bxe4 {[%clk
0:00:18]} 40... Nc4 {[%clk 0:00:16.3]} 41. h5 {[%clk 0:00:16.4]} 41... Nxb2
{[%clk 0:00:15]} 42. h6 {[%clk 0:00:15.9]} 42... Nc4 {[%clk 0:00:14.8]} 43. h7
{[%clk 0:00:15.8]} 43... Kg7 {[%clk 0:00:14.5]} 44. f3 {[%clk 0:00:13.5]} 44...
a5 {[%clk 0:00:13.7]} 45. Bd3 {[%clk 0:00:13.8]} 45... Nd6 {[%clk 0:00:12.9]}
46. Ke5 {[%clk 0:00:13.5]} 46... b5 {[%clk 0:00:11.8]} 47. Ke6 {[%clk
0:00:13.7]} 47... Nc4 {[%clk 0:00:11]} 48. Kd7 {[%clk 0:00:11.8]} 48... Ne5+
{[%clk 0:00:10.7]} 49. Kxc7 {[%clk 0:00:12.2]} 49... Nxd3 {[%clk 0:00:10.4]} 50.
d6 {[%clk 0:00:12.7]} 50... Nc5 {[%clk 0:00:07.5]} 51. d7 {[%clk 0:00:13.6]}
51... Kxh7 {[%clk 0:00:07.2]} 52. Kd6 {[%clk 0:00:12.8]} 1-0